bitfinex/quotes_ETHUSD_20250603
["timestamp","ask_amount","ask_price","bid_price","bid_amount"]
[1748948667588,3.82679316,2613.2,2612.9,2.90160837]
[1748948668015,1.59030156,2613.5,2612.9,2.90160837]
[1748948668212,3.82657942,2613.3,2612.9,2.90160837]
[1748948668523,3.82669217,2613.3,2612.9,2.90160837]
[1748948672101,3.82657942,2613.3,2612.9,2.90160837]
[1748948672434,3.82657942,2613.3,2612.9,6.72876316]
[1748948672637,1.004,2613.1,2612.6,0.37775942]
[1748948672837,1.004,2613.1,2612.7,6.7290358]
[1748948672838,4.83092978,2613.1,2612.7,6.7290358]
[1748948673133,1.004,2613.1,2612.7,6.7290358]
[1748948673503,1.51914453,2613.4,2612.9,2.90160837]
[1748948673695,3.82624995,2613.6,2613.2,2.90160837]
[1748948673902,3.82616902,2613.6,2613.4,2.90160837]
[1748948674738,4.80358145,2613.7,2613.4,2.90160837]
[1748948674947,5.66652888,2613.7,2613.4,2.90160837]
[1748948675252,1.84044743,2613.7,2613.4,2.90160837]
[1748948675909,3.82615332,2613.6,2613.4,2.90160837]
[1748948676109,1.84044743,2613.7,2613.4,2.90160837]
[1748948676426,5.66652615,2613.7,2613.4,2.90160837]
[1748948677049,0.86294743,2613.7,2613.4,2.90160837]
[1748948677351,4.80567407,2613.9,2613.5,2.90160837]
[1748948677560,0.9799,2613.9,2613.5,6.72781563]
[1748948677772,12.77258938,2614.1,2613.7,2.90160837]
[1748948677926,12.77258938,2614.1,2613.7,6.72758054]
[1748948677927,1.65979118,2614.0,2613.7,6.72758054]
[1748948678131,8.9471,2614.1,2613.7,2.90160837]
[1748948678350,3.82556664,2614.0,2613.7,2.90160837]
[1748948678552,8.9471,2614.1,2613.7,2.90160837]
[1748948678949,3.82563481,2614.0,2613.7,2.90160837]
[1748948679143,3.8257856,2613.9,2613.5,2.90160837]
[1748948679461,3.82589969,2613.8,2613.3,2.90160837]
[1748948679624,4.83484742,2613.8,2613.2,11.94160837]
[1748948679826,1.009,2613.8,2612.6,0.38829977]
[1748948680044,3.82636051,2613.5,2613.2,2.90160837]
[1748948685046,3.82643808,2613.4,2613.2,2.90160837]
[1748948685370,3.82657942,2613.3,2613.2,2.90160837]
[1748948685555,3.82649752,2613.4,2613.2,2.90160837]
[1748948685759,3.82652093,2613.4,2613.0,2.90160837]
[1748948686132,3.8265117,2613.4,2613.0,2.90160837]
[1748948686365,3.8265117,2613.4,2613.0,6.72860847]
[1748948687169,4.83485825,2613.8,2612.7,2.90160837]
[1748948687170,4.7751938,2613.7,2612.7,2.90160837]
[1748948687369,3.82683159,2613.2,2612.7,6.72896144]
[1748948688048,3.82683159,2613.2,2612.8,3.82730176]
[1748948688732,3.82683159,2613.2,2612.9,2.90160837]
[1748948689168,3.82664275,2613.3,2612.9,2.90160837]
[1748948689367,3.82650932,2613.4,2612.9,6.72875424]
[1748948689566,3.82636283,2613.5,2613.1,2.90160837]
[1748948689874,4.77542207,2613.6,2613.2,3.82668103]
[1748948690072,4.83057604,2613.7,2613.3,2.90160837]
[1748948690633,1.00451468,2613.7,2613.3,2.90160837]
[1748948690875,0.9345,2613.8,2613.5,2.90160837]
[1748948691179,3.82580156,2613.9,2613.5,2.90160837]
[1748948691374,3.82601075,2613.7,2613.5,2.90160837]
[1748948691747,3.82617914,2613.6,2613.2,0.55]
[1748948692132,3.82606479,2613.7,2613.2,0.55]
[1748948692594,3.82615706,2613.6,2613.2,0.55]
[1748948692762,3.82607227,2613.7,2613.1,2.90160837]
[1748948692961,0.937,2614.0,2613.3,2.90160837]
[1748948693162,3.82597851,2613.8,2613.3,2.90160837]
[1748948693871,3.82604409,2613.7,2613.3,2.90160837]
[1748948694077,1.002,2614.1,2613.6,2.90160837]
[1748948694299,3.82593656,2613.8,2613.6,2.90160837]
[1748948695502,3.8257812,2613.9,2613.6,2.90160837]
[1748948695663,3.82574078,2613.9,2613.6,2.90160837]
[1748948695864,3.8256233,2614.0,2613.6,2.90160837]
[1748948696219,3.82572076,2613.9,2613.6,2.90160837]
[1748948696403,3.82587098,2613.8,2613.4,3.45160837]
[1748948696607,3.8255547,2614.0,2613.4,3.45160837]
[1748948696764,5.13229881,2614.0,2613.4,3.45160837]
[1748948696968,3.82592214,2613.8,2613.4,2.90160837]
[1748948697994,3.82576436,2613.9,2613.4,6.72804082]
[1748948698196,3.82561821,2614.0,2613.6,2.90160837]
[1748948698402,0.52,2616.3,2613.8,2.90160837]
[1748948698403,1.0025,2614.3,2613.8,2.90160837]
[1748948698605,3.82514674,2614.3,2614.0,2.90160837]
[1748948698985,3.82502808,2614.4,2614.0,2.90160837]
[1748948700230,3.82487959,2614.5,2614.0,7.1084159]
[1748948700407,3.82467681,2614.6,2614.0,3.28289013]
[1748948700617,0.9879,2614.7,2614.0,7.10841971]
[1748948700802,3.82469209,2614.6,2614.2,2.90160837]
[1748948701330,3.82438456,2614.8,2614.2,2.90160837]
[1748948701531,3.82461041,2614.7,2614.2,6.72682549]
[1748948702036,3.82468314,2614.6,2614.2,2.90160837]
[1748948702192,3.82461082,2614.7,2614.2,6.72683628]
[1748948703037,3.82447667,2614.8,2614.3,3.82504938]
[1748948703192,0.02,2614.9,2614.4,2.90160837]
[1748948703838,3.82438938,2614.8,2614.4,2.90160837]
[1748948704334,3.82478066,2614.6,2614.3,0.55]
[1748948704634,3.82460761,2614.7,2614.3,0.55]
[1748948704813,3.82470863,2614.6,2614.2,2.90160837]
[1748948705210,0.02,2614.9,2614.2,2.90160837]
[1748948705411,3.82438427,2614.8,2614.2,2.90160837]
[1748948705738,3.82438427,2614.8,2614.2,6.72679761]
[1748948705949,3.82454144,2614.7,2614.2,6.72679761]
[1748948706501,3.82446197,2614.8,2614.2,6.72679761]
[1748948707443,0.02,2614.9,2614.2,2.90160837]
[1748948707649,3.84435751,2614.9,2614.2,2.90160837]
[1748948707862,3.82445905,2614.8,2614.3,3.82507496]
[1748948708317,3.82445905,2614.8,2614.2,6.72678487]
[1748948709104,3.82445905,2614.8,2614.3,3.82509299]
[1748948709734,3.82438453,2614.8,2614.3,3.82509299]
[1748948709902,0.02,2614.9,2614.5,2.90160837]
[1748948710235,0.02,2614.9,2614.8,3.82438427]
[1748948710823,0.02,2614.9,2614.8,4.37438427]
[1748948712115,0.02,2614.9,2614.7,8.0]
[1748948712913,0.02,2614.9,2614.8,2.90160837]
[1748948715620,0.02,2614.9,2614.7,8.0]
[1748948716829,0.02,2614.9,2614.8,2.90160837]
[1748948717430,0.02,2614.9,2614.8,10.90160837]
[1748948717630,0.02,2614.9,2614.8,14.72599264]
[1748948719253,0.02,2614.9,2614.8,15.27599264]
[1748948719619,0.02,2614.9,2614.8,19.18299264]
[1748948720031,0.02,2614.9,2614.8,16.28138427]
[1748948720461,0.02,2614.9,2614.8,16.73172628]
[1748948721158,0.02,2614.9,2614.8,16.28138427]
[1748948721854,0.02,2614.9,2614.8,16.72837374]
[1748948722849,0.02,2614.9,2614.8,12.37438427]
[1748948723046,0.02,2614.9,2614.8,17.29338427]
[1748948724069,0.02,2614.9,2614.8,15.27599264]
[1748948724275,0.02,2614.9,2614.8,20.19499264]
[1748948724860,0.02,2614.9,2614.8,15.27599264]
[1748948725079,0.02,2614.9,2614.8,20.19399264]
[1748948725480,0.02,2614.9,2614.8,15.27599264]
[1748948725989,0.02,2614.9,2614.8,8.0]
[1748948726188,0.02,2614.9,2614.6,6.72619527]
[1748948726589,0.02,2614.9,2614.7,8.0]
[1748948726882,0.02,2614.9,2614.7,11.82452092]
[1748948727091,0.02,2614.9,2614.8,7.27599264]
[1748948727453,0.02,2614.9,2614.8,15.27599264]
[1748948728192,0.02,2614.9,2614.8,12.37438427]
[1748948730071,0.02,2614.9,2614.8,20.19199264]
[1748948730272,0.02,2614.9,2614.8,11.38784611]
[1748948730500,0.02,2614.9,2614.8,11.64199264]
[1748948731321,0.02,2614.9,2614.8,8.74038427]
[1748948731496,0.02,2614.9,2614.8,11.64199264]
[1748948732162,0.02,2614.9,2614.8,20.19199264]
[1748948736494,0.02,2614.9,2614.8,17.29038427]
[1748948744344,0.02,2614.9,2614.8,20.18299264]
[1748948744848,0.02,2614.9,2614.8,15.27599264]
[1748948745020,0.02,2614.9,2614.8,16.29099264]
[1748948751054,0.02,2614.9,2614.8,15.27599264]
[1748948751248,0.02,2614.9,2614.8,14.72599264]
[1748948753526,0.02,2614.9,2614.8,8.0]
[1748948753728,0.956,2614.9,2614.7,3.82451012]
[1748948754264,0.956,2614.9,2614.8,2.90160837]
[1748948756028,0.956,2614.9,2614.8,6.72599264]
[1748948756233,0.02,2614.9,2614.8,6.72599264]
[1748948758037,0.02,2614.9,2614.8,14.72599264]
[1748948759856,0.02,2614.9,2614.8,10.90160837]
[1748948760056,0.02,2614.9,2614.8,14.72599264]
[1748948760260,0.02,2614.9,2614.8,2.90160837]
[1748948760480,0.9217,2614.8,2614.5,8.0]
[1748948760650,0.9217,2614.8,2614.7,8.0]
[1748948760858,0.9217,2614.8,2614.4,2.90160837]
[1748948761038,0.9217,2614.8,2614.7,3.82453053]
[1748948761242,0.02,2614.9,2614.7,3.82453053]
[1748948761574,0.02,2614.9,2614.8,6.72599264]
[1748948762334,0.02,2614.9,2614.8,2.90160837]
[1748948762943,0.02,2614.9,2614.8,6.72599264]
[1748948763567,0.02,2614.9,2614.8,2.90160837]
[1748948765466,0.02,2614.9,2614.6,14.72621121]
[1748948765987,0.02,2614.9,2614.7,3.82451443]
[1748948767793,0.02,2614.9,2614.8,14.72599264]
[1748948768594,0.02,2614.9,2614.8,10.90160837]
[1748948768774,0.02,2614.9,2614.8,8.0]
[1748948773114,1.85950675,2614.9,2613.9,2.90160837]
[1748948773414,3.885,2614.8,2613.8,2.90160837]
[1748948773564,3.885,2614.8,2613.9,8.0]
[1748948773565,0.9789,2614.2,2613.9,8.0]
[1748948773960,4.80416278,2614.2,2613.7,4.50362027]
[1748948774179,4.80416278,2614.2,2613.9,2.90160837]
[1748948774382,0.9789,2614.2,2613.9,2.90160837]
[1748948774575,0.9789,2614.2,2614.0,8.0]
[1748948776193,0.9789,2614.2,2614.1,10.90160837]
[1748948781642,4.73668642,2614.4,2614.1,10.90160837]
[1748948781844,5.98132825,2614.4,2614.1,10.90160837]
[1748948782149,2.15634183,2614.4,2614.1,10.90160837]
[1748948782318,5.98131535,2614.4,2614.1,10.90160837]
[1748948782866,2.15634183,2614.4,2614.1,10.90160837]
[1748948783051,0.9117,2614.4,2614.1,10.90160837]
[1748948783364,0.9117,2614.4,2614.3,2.90160837]
[1748948784472,0.9117,2614.4,2614.2,2.90160837]
[1748948786077,4.73667265,2614.4,2614.0,3.28684381]
[1748948786369,3.82522343,2614.3,2614.0,3.28684381]
[1748948786536,4.68141304,2614.3,2614.0,3.28684381]
[1748948786873,4.78920836,2614.1,2614.0,0.38523544]
[1748948787243,4.78920836,2614.1,2613.8,2.90160837]
[1748948787444,0.9638,2614.1,2613.8,6.72744634]
[1748948787674,0.9638,2614.1,2613.8,6.72744884]
[1748948788179,0.9638,2614.1,2614.0,2.90160837]
[1748948788327,4.74802583,2614.3,2614.0,2.90160837]
[1748948790148,4.74802583,2614.3,2614.0,3.29181219]
[1748948790362,0.9228,2614.3,2614.0,3.29181219]
[1748948790560,4.74791982,2614.3,2614.0,3.29181219]
[1748948793347,5.60521203,2614.3,2614.0,2.90160837]
[1748948793773,3.82530061,2614.2,2614.0,2.90160837]
[1748948794189,3.82530061,2614.2,2614.0,3.28186788]
[1748948795748,3.82536416,2614.2,2614.0,3.28186788]
[1748948795980,5.60524598,2614.3,2613.5,1.12517046]
[1748948795981,5.66609221,2614.3,2613.5,1.12517046]
[1748948796283,5.72264339,2614.2,2613.8,6.72741423]
[1748948796581,0.9482,2614.2,2614.0,2.90160837]
[1748948796782,3.886,2614.3,2614.0,2.90160837]
[1748948797085,8.70491201,2614.4,2614.0,3.29199336]
[1748948797493,8.70491201,2614.4,2614.0,7.11752235]
[1748948797802,4.81891201,2614.4,2614.0,3.29199336]
[1748948798007,3.82512178,2614.3,2614.0,3.29199336]
[1748948798207,4.81894952,2614.4,2614.0,3.29199336]
[1748948799035,3.82513408,2614.3,2614.0,3.29199336]
[1748948802828,4.81890275,2614.4,2614.0,3.29199336]
[1748948802978,3.82518551,2614.3,2614.0,3.29199336]
[1748948805518,5.68938705,2614.4,2614.0,3.29199336]
[1748948805830,3.82520348,2614.3,2614.0,3.29199336]
[1748948810528,5.68938705,2614.4,2614.0,3.29199336]
[1748948811418,3.82517318,2614.3,2614.0,3.29199336]
[1748948812591,5.68943234,2614.4,2614.0,3.29199336]
[1748948812815,3.82512793,2614.3,2614.0,3.29199336]
[1748948815408,1.86439028,2614.4,2614.0,3.29199336]
[1748948815409,3.82540836,2614.1,2614.0,0.39038499]
[1748948815649,1.34004118,2614.3,2613.7,2.90160837]
[1748948815806,3.82578207,2613.9,2613.7,2.90160837]
[1748948816223,3.82563475,2614.0,2613.7,2.90160837]
[1748948819446,4.71708695,2614.1,2613.7,2.90160837]
[1748948819655,4.71708695,2614.1,2613.7,6.7275861]
[1748948819954,3.82548695,2614.1,2613.9,2.90160837]
[1748948821959,4.82346167,2614.1,2613.9,2.90160837]
[1748948822257,3.82548695,2614.1,2613.9,2.90160837]
[1748948823653,3.82542514,2614.1,2613.9,2.90160837]
[1748948824181,3.82550312,2614.1,2613.9,2.90160837]
[1748948824528,3.8255547,2614.0,2613.9,2.90160837]
[1748948825282,3.8254675,2614.1,2613.9,2.90160837]
[1748948825774,3.8255547,2614.0,2613.5,11.82622822]
[1748948825975,3.8255547,2614.0,2613.8,2.90160837]
[1748948826561,3.82548836,2614.1,2613.8,2.90160837]
[1748948827864,0.86102184,2614.1,2613.4,0.39672207]
[1748948828072,3.82614018,2613.6,2613.5,2.90160837]
[1748948828583,3.82607421,2613.7,2613.5,2.90160837]
[1748948828895,0.912,2614.0,2613.5,2.90160837]
[1748948829196,3.82613903,2613.7,2613.5,2.90160837]
[1748948829693,3.82584742,2613.8,2613.4,2.90160837]
[1748948829694,3.82626059,2613.6,2613.4,2.90160837]
[1748948829990,3.82625582,2613.6,2613.3,2.90160837]
[1748948831651,4.73855582,2613.6,2613.3,2.90160837]
[1748948831853,4.73852012,2613.6,2613.3,2.90160837]
[1748948832396,0.9123,2613.8,2613.5,2.90160837]
[1748948832554,3.82600486,2613.7,2613.5,2.90160837]
[1748948832906,3.82600166,2613.7,2613.5,2.90160837]
[1748948834315,3.82619891,2613.6,2613.2,3.82670788]
[1748948834604,3.82635193,2613.5,2613.2,2.90160837]
[1748948835104,3.82620096,2613.6,2613.2,2.90160837]
[1748948836192,3.82638752,2613.5,2613.0,3.82701057]
[1748948836373,3.82638752,2613.5,2613.3,2.90160837]
[1748948836556,4.68288193,2613.5,2613.3,2.90160837]
[1748948838272,0.85649441,2613.5,2613.3,2.90160837]
[1748948838472,3.82614018,2613.6,2613.3,2.90160837]
[1748948838906,3.8263205,2613.5,2613.3,2.90160837]
[1748948840108,3.82620772,2613.6,2613.3,2.90160837]
[1748948840483,4.7384788,2613.7,2613.2,2.90160837]
[1748948840484,1.007,2613.4,2613.2,2.90160837]
[1748948842072,1.007,2613.4,2612.9,9.08999175]
[1748948842073,3.82657942,2613.3,2612.9,9.08999175]
[1748948842278,3.82657942,2613.3,2612.9,15.23827602]
[1748948842698,1.007,2613.4,2612.9,15.23827602]
[1748948843121,4.83349908,2613.4,2612.9,15.23827602]
[1748948843413,4.83349908,2613.4,2613.1,2.90160837]
[1748948843613,5.69948255,2613.4,2613.1,2.90160837]
[1748948844863,3.8265958,2613.3,2613.1,2.90160837]
[1748948846130,5.69948851,2613.4,2613.1,2.90160837]
[1748948847323,3.82608405,2613.7,2613.3,2.90160837]
[1748948847517,3.82608405,2613.7,2613.6,2.90160837]
[1748948848833,3.82608405,2613.7,2613.4,2.90160837]
[1748948849964,0.9098,2613.6,2613.2,2.90160837]
[1748948850162,3.82643507,2613.4,2613.2,2.90160837]
[1748948851483,3.8263574,2613.5,2613.2,2.90160837]
[1748948855247,3.82638314,2613.5,2613.2,2.90160837]
[1748948858587,5.07120594,2613.5,2612.9,11.8271523]
[1748948858791,3.82670151,2613.3,2613.1,2.90160837]
[1748948859442,1.2448228,2613.5,2613.1,2.90160837]
[1748948859642,3.82696946,2613.1,2612.8,8.0]
[1748948859846,3.82679811,2613.2,2612.8,8.0]
[1748948860185,3.82679811,2613.2,2612.9,2.90160837]
[1748948860358,0.9325,2613.3,2612.9,2.90160837]
[1748948860359,4.75913911,2613.3,2612.9,2.90160837]
[1748948863291,3.82672956,2613.2,2612.9,2.90160837]
[1748948863591,4.75916136,2613.3,2612.9,2.90160837]
[1748948864397,3.82675124,2613.2,2612.9,2.90160837]
[1748948866058,3.82665671,2613.3,2613.1,2.90160837]
[1748948866265,3.82672585,2613.2,2613.1,2.90160837]
[1748948866946,4.75797538,2613.1,2612.7,11.52450194]
[1748948867147,4.75797538,2613.1,2612.9,2.90160837]
[1748948868780,0.931,2613.1,2612.9,2.90160837]
[1748948869093,3.82680586,2613.2,2612.9,2.90160837]
[1748948869592,3.82687464,2613.1,2612.9,2.90160837]
[1748948870297,3.82701875,2613.0,2612.9,2.90160837]
[1748948870466,3.82745818,2612.7,2612.6,0.38804338]
[1748948870789,4.73789226,2612.6,2612.1,2.92160837]
[1748948870989,3.82783654,2612.5,2612.1,2.92160837]
[1748948871189,3.82789962,2612.4,2612.1,2.92160837]
[1748948873698,3.82775119,2612.5,2612.1,2.92160837]
[1748948873874,3.82799953,2612.4,2612.1,2.92160837]
[1748948874288,3.82806965,2612.3,2612.1,2.92160837]
[1748948874576,0.9102,2612.6,2612.1,2.92160837]
[1748948874577,3.82798121,2612.4,2612.1,2.92160837]
[1748948874777,3.82798121,2612.4,2612.1,3.30148681]
[1748948875867,3.82798121,2612.4,2612.1,2.92160837]
[1748948877002,3.82796769,2612.4,2612.1,2.92160837]
[1748948877214,0.9102,2612.6,2612.3,2.90160837]
[1748948877368,3.8252344,2614.3,2612.1,0.02]
[1748948877369,4.79462157,2612.9,2612.5,2.90160837]
[1748948877564,4.79462157,2612.9,2612.5,3.27695876]
[1748948877565,3.82739459,2612.8,2612.5,3.27695876]
[1748948877886,3.82745959,2612.7,2612.5,3.27695876]
[1748948880004,3.82755141,2612.7,2612.5,3.27695876]
[1748948880500,1.44686216,2612.9,2612.5,3.27695876]
[1748948880715,3.82750322,2612.7,2612.5,3.27695876]
[1748948881414,3.82760468,2612.6,2612.5,3.27695876]
[1748948881909,3.82784007,2612.5,2612.4,2.90160837]
[1748948882108,3.82761531,2612.6,2612.1,4.43375148]
[1748948882406,3.82761531,2612.6,2612.4,2.90160837]
[1748948883114,0.76550136,2612.6,2612.1,0.60549412]
[1748948883300,3.82782583,2612.5,2612.3,2.90160837]
[1748948883625,0.9674,2612.9,2612.3,3.2772015]
[1748948883790,3.82775997,2612.5,2612.3,3.2772015]
[1748948884119,3.82750147,2612.7,2612.3,3.2772015]
[1748948884285,3.82766826,2612.6,2612.3,3.2772015]
[1748948884485,3.82775324,2612.5,2612.3,3.2772015]
[1748948885615,3.82775324,2612.5,2612.4,2.90160837]
[1748948886002,3.82763336,2612.6,2612.4,2.90160837]
[1748948886505,3.82775119,2612.5,2612.4,2.90160837]
[1748948894942,3.82775119,2612.5,2612.3,0.37685492]
[1748948895317,3.82775119,2612.5,2612.2,2.90160837]
[1748948896618,3.82775119,2612.5,2612.2,3.27561666]
[1748948900152,4.71117918,2612.4,2612.2,0.37400829]
[1748948900349,4.71117918,2612.4,2612.1,2.90160837]
[1748948901155,4.71117918,2612.4,2612.1,3.28074151]
[1748948904757,4.71117918,2612.4,2612.1,3.66314151]
[1748948904961,4.71117918,2612.4,2612.1,3.28074151]
[1748948906522,3.8281366,2612.3,2612.1,3.28074151]
[1748948906717,3.82819079,2612.2,2612.1,3.28074151]
[1748948906923,3.8281366,2612.3,2612.1,3.28074151]
[1748948906924,3.82812421,2612.3,2612.1,3.28074151]
[1748948907258,3.82819079,2612.2,2612.1,0.37913314]
[1748948907455,3.82819079,2612.2,2612.0,8.0]
[1748948908673,4.7060269,2612.0,2611.8,8.60777608]
[1748948909076,4.7060269,2612.0,2611.8,8.99446507]
[1748948909437,0.8774,2612.0,2611.8,0.99446507]
[1748948909683,4.70591767,2612.0,2611.8,3.89607344]
[1748948910182,4.70591767,2612.0,2611.8,3.50938445]
[1748948910553,0.8774,2612.0,2611.8,3.50938445]
[1748948913395,0.8774,2612.0,2611.8,3.88344709]
[1748948915471,4.78202911,2612.3,2611.9,3.82858727]
[1748948915696,0.9539,2612.3,2612.0,2.90160837]
[1748948915904,7.71397255,2612.4,2612.0,2.90160837]
[1748948916080,7.71397255,2612.4,2612.0,6.7300664]
[1748948916401,3.82797255,2612.4,2612.2,2.90160837]
[1748948916558,4.68806407,2612.4,2612.2,2.90160837]
[1748948917123,0.9453,2612.8,2612.3,3.82800049]
[1748948917258,3.82746706,2612.7,2612.4,2.90160837]
[1748948918427,3.8276115,2612.6,2612.4,2.90160837]
[1748948918982,3.82767174,2612.6,2612.4,2.90160837]
[1748948920112,3.82775119,2612.5,2612.4,2.90160837]
[1748948920283,3.82775119,2612.5,2612.2,2.90160837]
[1748948920724,3.82767722,2612.6,2612.2,6.72975439]
[1748948920888,3.82767722,2612.6,2612.2,2.90160837]
[1748948925312,3.82782135,2612.5,2612.2,2.90160837]
[1748948925716,3.82768663,2612.6,2612.2,2.90160837]
[1748948926844,3.82776312,2612.5,2612.2,2.90160837]
[1748948927044,3.82748785,2612.7,2612.2,2.90160837]
[1748948927345,4.73223664,2612.7,2612.2,2.90160837]
[1748948927910,3.82770788,2612.6,2612.2,2.90160837]
[1748948928343,4.73223664,2612.7,2612.2,2.90160837]
[1748948928546,3.82770503,2612.6,2612.2,2.90160837]
[1748948930615,3.82597984,2613.8,2612.4,2.90160837]
[1748948930861,3.82703942,2613.0,2612.8,2.90160837]
[1748948931355,3.82703942,2613.0,2612.6,2.90160837]
[1748948931753,3.82710652,2613.0,2612.6,2.90160837]
[1748948931951,3.82716575,2612.9,2612.6,2.90160837]
[1748948936564,3.82710284,2613.0,2612.6,2.90160837]
[1748948938699,3.82717866,2612.9,2612.6,2.90160837]
[1748948939159,3.82710679,2613.0,2612.6,2.90160837]
[1748948939895,3.82717065,2612.9,2612.6,2.90160837]
[1748948940296,3.82707639,2613.0,2612.6,2.90160837]
[1748948940590,3.82707639,2613.0,2612.6,6.72916797]
[1748948940758,3.82702717,2613.0,2612.6,6.72916797]
[1748948942400,3.82717271,2612.9,2612.6,2.90160837]
[1748948942598,3.885,2613.2,2612.4,3.47765539]
[1748948942796,3.82738105,2612.8,2612.4,3.47765539]
[1748948943095,3.82766246,2612.6,2612.4,0.57604702]
[1748948943489,3.82775119,2612.5,2612.4,0.57604702]
[1748948943660,3.82768328,2612.6,2612.4,0.57604702]
[1748948944544,3.82773169,2612.6,2612.4,0.57604702]
[1748948945104,3.82775119,2612.5,2612.4,0.57604702]
[1748948945293,3.82768988,2612.6,2612.4,0.57604702]
[1748948946322,3.82775119,2612.5,2612.4,0.57604702]
[1748948949723,4.59327882,2612.5,2612.4,0.57604702]
[1748948950940,5.57077882,2612.5,2612.4,0.57604702]
[1748948953131,3.8281189,2612.3,2611.9,10.90160837]
[1748948953415,3.82820184,2612.2,2611.9,10.90160837]
[1748948953970,3.82801895,2612.4,2611.9,2.90160837]
[1748948953971,3.82789771,2612.4,2611.9,2.90160837]
[1748948954173,3.82816841,2612.3,2611.9,2.90160837]
[1748948954373,3.82821717,2612.2,2611.9,2.90160837]
[1748948954877,0.8883,2612.7,2612.1,2.90160837]
[1748948955078,3.82789117,2612.5,2612.1,3.47245617]
[1748948956014,8.59984109,2612.7,2612.3,2.90160837]
[1748948956193,3.82769095,2612.6,2612.3,2.90160837]
[1748948956398,3.82771577,2612.6,2612.3,2.90160837]
[1748948956597,3.82775803,2612.5,2612.3,2.90160837]
[1748948957017,3.82769216,2612.6,2612.3,2.90160837]
[1748948957247,0.92,2613.0,2612.5,2.90160837]
[1748948957446,0.92,2613.2,2612.8,2.90160837]
[1748948957749,3.8268865,2613.1,2612.8,2.90160837]
[1748948958248,3.82703455,2613.0,2612.8,2.90160837]
[1748948958952,3.8269575,2613.1,2612.8,2.90160837]
[1748948959609,3.82702904,2613.0,2612.8,2.90160837]
[1748948961557,3.82693576,2613.1,2612.8,2.90160837]
[1748948961757,0.9355,2613.6,2613.0,2.90160837]
[1748948962055,4.76141845,2613.8,2613.4,2.90160837]
[1748948962254,5.62212688,2613.8,2613.4,2.90160837]
[1748948962749,4.68662688,2613.8,2613.4,2.90160837]
[1748948962909,0.86070843,2613.8,2613.4,2.90160837]
[1748948963113,0.86070843,2613.8,2613.4,6.7279762]
[1748948963313,4.68662705,2613.8,2613.4,2.90160837]
[1748948964459,3.82600244,2613.7,2613.4,2.90160837]
[1748948964831,0.86070843,2613.8,2613.4,2.90160837]
[1748948965153,0.47064204,2613.7,2613.4,2.90160837]
[1748948967054,4.29664314,2613.7,2613.4,2.90160837]
[1748948967256,4.29664314,2613.7,2613.3,0.37381747]
[1748948967441,3.82638422,2613.5,2613.0,11.82699597]
[1748948969864,3.82638422,2613.5,2613.0,8.0]
[1748948970034,4.73990984,2613.6,2613.2,3.82668607]
[1748948970235,3.82605532,2613.7,2613.2,4.20441806]
[1748948970442,5.07145581,2613.7,2613.2,4.20441806]
[1748948970755,1.24540049,2613.7,2613.3,6.72817646]
[1748948970924,5.07143109,2613.7,2613.3,6.72817646]
[1748948971256,1.24540049,2613.7,2613.4,3.82642664]
[1748948971465,1.24540049,2613.7,2613.3,6.72807363]
[1748948972254,5.07142068,2613.7,2613.3,6.72807363]
[1748948972566,5.07142068,2613.7,2613.3,2.90160837]
[1748948974744,5.07142068,2613.7,2613.2,4.20907653]
[1748948975157,3.82616332,2613.6,2613.2,4.20907653]
[1748948975449,3.82631967,2613.5,2613.2,0.38243262]
[1748948975662,3.82631967,2613.5,2613.1,14.72844934]
[1748948975837,3.82627245,2613.6,2613.1,10.90160837]
[1748948976037,3.82628658,2613.5,2613.1,10.90160837]
[1748948977867,3.82628658,2613.5,2613.1,15.1111626]
[1748948978065,4.42328532,2613.6,2613.1,11.28430393]
[1748948978267,4.42328532,2613.6,2613.2,3.82672505]
[1748948978488,0.5970576,2613.6,2613.2,3.82672505]
[1748948978973,4.42329084,2613.6,2613.1,15.11106755]
[1748948979181,0.94947121,2613.5,2613.1,15.11106755]
[1748948979735,0.5970576,2613.6,2613.1,15.11106755]
[1748948979978,0.5970576,2613.6,2613.2,3.82665433]
[1748948980175,0.5970576,2613.6,2613.3,3.82656378]
[1748948980382,4.72502619,2613.8,2613.3,3.82656378]
[1748948981574,3.82605993,2613.7,2613.1,15.11116113]
[1748948981763,3.82626648,2613.6,2613.2,3.82671138]
[1748948982171,3.82626648,2613.6,2613.1,15.11108979]
[1748948982668,3.82626648,2613.6,2613.2,3.82671956]
[1748948982856,4.68140912,2613.6,2613.2,3.82671956]
[1748948983052,4.68140912,2613.6,2613.1,11.28430393]
[1748948983053,4.68140912,2613.6,2613.1,15.11110611]
[1748948984081,4.68140274,2613.6,2613.1,15.11110611]
[1748948984279,0.8798,2613.5,2613.1,8.38269556]
[1748948984485,4.70570742,2613.8,2613.1,15.11112238]
[1748948984682,3.82605396,2613.7,2613.3,3.82657816]
[1748948985462,3.82605396,2613.7,2613.2,3.826636]
[1748948986599,3.82605396,2613.7,2613.3,3.82655916]
[1748948986797,0.85515881,2613.7,2613.3,3.82655916]
[1748948987003,4.68116961,2613.7,2613.3,3.82655916]
[1748948987214,0.85515881,2613.7,2613.3,3.82655916]
[1748948987700,4.68116082,2613.7,2613.3,3.82655916]
[1748948989099,3.82600201,2613.7,2613.3,3.82655916]
[1748948992088,4.7056542,2613.8,2613.2,3.82664177]
[1748948992826,3.82612999,2613.7,2613.2,3.82664177]
[1748948993203,3.82615213,2613.6,2613.2,3.82664177]
[1748948997731,3.82608126,2613.7,2613.2,3.82664177]
[1748948998126,3.82616184,2613.6,2613.2,3.82664177]
[1748948999837,3.82607978,2613.7,2613.2,3.82664177]
[1748949001844,3.82616607,2613.6,2613.2,3.82664177]
[1748949003460,3.8260534,2613.7,2613.3,3.82653579]
[1748949003622,3.8260534,2613.7,2613.2,3.82664868]
[1748949006361,3.82615385,2613.6,2613.2,3.82664868]
[1748949006527,3.82615385,2613.6,2613.1,15.11108745]
[1748949006939,3.82635543,2613.5,2613.1,15.11108745]
[1748949007226,3.82625363,2613.6,2613.1,15.11116198]
[1748949007425,3.82634598,2613.5,2613.1,15.11116198]
[1748949007922,0.864,2613.5,2613.1,8.38269556]
[1748949008158,3.82659376,2613.3,2613.1,8.38269556]
[1748949008354,3.82652395,2613.4,2613.1,8.38269556]
[1748949008768,4.69037645,2613.5,2613.1,8.38269556]
[1748949011378,5.58909235,2613.5,2613.1,8.38269556]
[1748949012289,0.864,2613.5,2613.2,3.82665049]
[1748949012644,3.82620645,2613.6,2613.2,3.82665049]
[1748949012844,8.57327914,2613.7,2613.2,3.82665049]
[1748949013838,3.82615767,2613.6,2613.2,3.82665049]
[1748949019583,3.82615767,2613.6,2613.1,15.11112132]
[1748949020083,3.82634434,2613.5,2613.1,15.11109393]
[1748949020884,3.82622333,2613.6,2613.2,3.82672517]